bitfinex/quotes_BTCUSD_20241216
["timestamp","ask_amount","ask_price","bid_price","bid_amount"]
[1734361627276,0.07653191,105600.0,105580.0,0.00700038]
[1734361627491,0.17082261,105600.0,105580.0,0.00700038]
[1734361627708,0.13448641,105590.0,105580.0,0.00700038]
[1734361628840,0.04019571,105590.0,105580.0,0.00700038]
[1734361629282,0.09523786,105590.0,105580.0,0.00700038]
[1734361629506,0.22013786,105590.0,105580.0,0.00700038]
[1734361629721,0.2191907,105590.0,105580.0,0.00700038]
[1734361629947,0.2921907,105590.0,105580.0,0.0001726]
[1734361630422,0.023,105580.0,105560.0,0.01494783]
[1734361630642,0.09523786,105570.0,105560.0,0.01494783]
[1734361630868,0.29633786,105570.0,105560.0,0.01494783]
[1734361631082,0.2223907,105570.0,105560.0,0.01494783]
[1734361632007,0.2223907,105570.0,105560.0,0.16494783]
[1734361632235,0.2223907,105570.0,105560.0,0.01494783]
[1734361632236,0.1306269,105570.0,105560.0,0.01494783]
[1734361632521,0.04019571,105580.0,105560.0,0.01494783]
[1734361632742,0.04019571,105580.0,105560.0,0.00016776]
[1734361632970,0.17082261,105580.0,105560.0,0.00016776]
[1734361633182,0.07653191,105580.0,105560.0,0.00016776]
[1734361633401,0.04019571,105580.0,105560.0,0.00016776]
[1734361633640,0.07653191,105600.0,105570.0,0.15736052]
[1734361633883,0.07653191,105600.0,105580.0,0.00094695]
[1734361634105,0.07653191,105600.0,105580.0,0.02644427]
[1734361634106,0.17082261,105600.0,105580.0,0.02644427]
[1734361634327,0.04019571,105580.0,105570.0,0.17645316]
[1734361634543,0.04019571,105580.0,105570.0,0.15]
[1734361634761,0.04019571,105580.0,105570.0,0.17645911]
[1734361635876,0.0942907,105580.0,105570.0,0.02645911]
[1734361636094,0.13448641,105580.0,105560.0,0.0151211]
[1734361636321,0.04019571,105580.0,105560.0,0.04252394]
[1734361636538,0.04019571,105570.0,105560.0,0.04157676]
[1734361636751,0.17082261,105570.0,105560.0,0.04157676]
[1734361636967,0.13157406,105570.0,105560.0,0.0151211]
[1734361639439,0.17176977,105570.0,105560.0,0.0151211]
[1734361639672,0.17183786,105570.0,105560.0,0.0151211]
[1734361641966,0.17183786,105570.0,105560.0,0.1651211]
[1734361642213,0.17183786,105570.0,105560.0,0.0151211]
[1734361642437,0.17183786,105570.0,105560.0,0.1651211]
[1734361642906,0.17183786,105570.0,105560.0,0.0151211]
[1734361643359,0.1938907,105570.0,105560.0,0.0151211]
[1734361643574,0.1708907,105570.0,105560.0,0.0151211]
[1734361643789,0.0942907,105570.0,105560.0,0.0151211]
[1734361644039,0.12563191,105580.0,105560.0,0.0151211]
[1734361644256,0.17082261,105580.0,105560.0,0.04154045]
[1734361644681,0.17082261,105580.0,105560.0,0.02675971]
[1734361644891,0.07653191,105570.0,105560.0,0.02675971]
[1734361645555,0.07653191,105570.0,105560.0,0.04154215]
[1734361645989,0.0942907,105570.0,105560.0,0.04154215]
[1734361646208,0.0942907,105570.0,105560.0,0.0151228]
[1734361646433,0.17082261,105570.0,105560.0,0.04155832]
[1734361646919,0.07661821,105580.0,105560.0,0.04155832]
[1734361647130,0.17090891,105580.0,105560.0,0.19155832]
[1734361647756,0.17090891,105580.0,105560.0,0.1925055]
[1734361648064,0.13457271,105580.0,105560.0,0.19250546]
[1734361648290,8.63e-05,105580.0,105560.0,0.19250543]
[1734361649645,0.0003863,105580.0,105570.0,0.0125533]
[1734361649865,0.0003863,105580.0,105570.0,0.03898882]
[1734361650313,0.0003863,105580.0,105570.0,0.02738254]
[1734361651187,0.0003863,105580.0,105570.0,0.02643552]
[1734361651412,0.0003863,105580.0,105560.0,0.1925054]
[1734361651636,0.0003863,105580.0,105560.0,0.2867961]
[1734361651871,0.0003863,105580.0,105570.0,2.11182498]
[1734361652091,8.63e-05,105600.0,105570.0,2.11182498]
[1734361652092,8.63e-05,105600.0,105580.0,0.15]
[1734361652311,8.63e-05,105600.0,105590.0,0.00094678]
[1734361652521,8.63e-05,105600.0,105590.0,2.02580128]
[1734361652738,8.63e-05,105600.0,105590.0,0.49157222]
[1734361653378,8.63e-05,105600.0,105590.0,0.6057785]
[1734361654020,8.63e-05,105600.0,105590.0,0.5710525]
[1734361654483,8.63e-05,105600.0,105590.0,0.61693801]
[1734361655345,8.63e-05,105600.0,105590.0,0.60533173]
[1734361655802,8.63e-05,105600.0,105590.0,0.62519713]
[1734361656019,8.63e-05,105600.0,105590.0,0.60533173]
[1734361656234,8.63e-05,105600.0,105590.0,0.27892103]
[1734361656489,8.63e-05,105600.0,105590.0,0.04932103]
[1734361656490,0.04028201,105600.0,105590.0,0.04932103]
[1734361656754,0.07661821,105600.0,105590.0,0.02643552]
[1734361657024,0.07661821,105600.0,105570.0,0.12726553]
[1734361657261,0.07661821,105600.0,105570.0,0.22155623]
[1734361657489,0.07661821,105600.0,105570.0,0.22060928]
[1734361657916,0.04019571,105590.0,105570.0,0.07344761]
[1734361658127,0.17176977,105590.0,105570.0,0.07344761]
[1734361658361,0.17176977,105590.0,105570.0,0.08822793]
[1734361659013,0.17082261,105590.0,105570.0,0.08822793]
[1734361659232,0.07653191,105590.0,105570.0,0.07345133]
[1734361659452,0.08948201,105600.0,105570.0,0.05171629]
[1734361659723,0.0364225,105600.0,105580.0,0.00379878]
[1734361659947,8.63e-05,105600.0,105580.0,0.09808948]
[1734361660166,8.63e-05,105600.0,105580.0,0.27167326]
[1734361660167,0.0364225,105600.0,105580.0,0.27167326]
[1734361660383,0.0364225,105600.0,105580.0,0.27072622]
[1734361661064,0.0364225,105600.0,105580.0,0.17643552]
[1734361661285,0.0364225,105600.0,105580.0,0.02643552]
[1734361661508,8.63e-05,105600.0,105590.0,0.00094693]
[1734361661727,8.63e-05,105600.0,105590.0,0.15094693]
[1734361661954,8.63e-05,105600.0,105590.0,0.17738245]
[1734361662808,8.63e-05,105600.0,105590.0,0.05012452]
[1734361663021,8.63e-05,105600.0,105590.0,1.54499339]
[1734361663240,8.63e-05,105600.0,105590.0,1.27855039]
[1734361663481,8.63e-05,105600.0,105590.0,1.17297139]
[1734361663702,8.63e-05,105600.0,105590.0,1.14205739]
[1734361663919,8.63e-05,105600.0,105590.0,1.08035739]
[1734361664128,8.63e-05,105600.0,105590.0,0.22169865]
[1734361664339,8.63e-05,105600.0,105590.0,1.07737765]
[1734361664550,8.63e-05,105600.0,105590.0,0.24458416]
[1734361665226,8.63e-05,105600.0,105590.0,0.61382016]
[1734361665860,8.63e-05,105600.0,105590.0,0.56512151]
[1734361666070,8.63e-05,105600.0,105590.0,0.17288551]
[1734361666505,8.63e-05,105600.0,105590.0,0.59289254]
[1734361666719,8.63e-05,105600.0,105590.0,0.30642887]
[1734361666935,8.63e-05,105600.0,105590.0,0.2672907]
[1734361667443,8.63e-05,105600.0,105590.0,0.4671877]
[1734361667881,0.04133453,105620.0,105590.0,0.4671877]
[1734361668099,0.04133453,105620.0,105610.0,0.15]
[1734361669249,0.04133453,105620.0,105600.0,0.15]
[1734361669494,0.04189374,105620.0,105600.0,0.15]
[1734361671008,0.04189374,105620.0,105600.0,0.17616911]
[1734361671894,0.04189374,105620.0,105600.0,0.20245429]
[1734361672112,0.04189374,105620.0,105600.0,0.27045981]
[1734361673425,0.04189374,105620.0,105600.0,0.26745981]
[1734361674306,0.00555754,105620.0,105600.0,0.26745981]
[1734361674526,0.00555754,105620.0,105610.0,0.1172907]
[1734361674744,0.00555754,105620.0,105610.0,0.76721055]
[1734361675653,0.00555754,105620.0,105610.0,0.92701484]
[1734361675869,0.00555754,105620.0,105610.0,0.46312255]
[1734361676082,0.00555754,105620.0,105610.0,0.32117111]
[1734361676293,0.00055754,105620.0,105610.0,0.91188181]
[1734361676533,0.00055754,105620.0,105610.0,0.93179164]
[1734361677174,0.00055754,105620.0,105610.0,0.94356038]
[1734361678054,8.62e-05,105630.0,105620.0,0.173]
[1734361678273,0.00025382,105630.0,105620.0,2.50476255]
[1734361678727,1e-08,105630.0,105620.0,2.50476255]
[1734361678941,0.00011,105650.0,105640.0,0.173]
[1734361679195,0.00011,105650.0,105640.0,2.6959143]
[1734361679422,0.00011,105650.0,105640.0,3.1863613]
[1734361679649,0.00011,105650.0,105640.0,1.81713181]
[1734361679864,0.00011,105650.0,105640.0,1.83484575]
[1734361680080,0.00011,105650.0,105640.0,1.27930275]
[1734361680585,8.63e-05,105670.0,105640.0,1.34288881]
[1734361680805,8.63e-05,105670.0,105660.0,0.173]
[1734361681027,8.63e-05,105670.0,105660.0,0.88077181]
[1734361681472,8.63e-05,105670.0,105660.0,0.88521439]
[1734361681685,8.63e-05,105670.0,105660.0,0.76667981]
[1734361681913,4.63e-05,105670.0,105660.0,0.76667981]
[1734361682135,4.63e-05,105670.0,105660.0,0.64938911]
[1734361682356,0.17973271,105670.0,105660.0,0.62322]
[1734361682803,0.0452463,105670.0,105660.0,0.62322]
[1734361683038,4.63e-05,105670.0,105660.0,0.62766258]
[1734361683252,4.63e-05,105670.0,105660.0,0.65383821]
[1734361683472,4.63e-05,105670.0,105660.0,1.02098991]
[1734361683689,4.63e-05,105670.0,105660.0,1.04398991]
[1734361683902,4.63e-05,105670.0,105660.0,0.77112891]
[1734361684118,4.63e-05,105670.0,105660.0,0.76668633]
[1734361684386,4.63e-05,105670.0,105660.0,0.64939563]
[1734361684614,0.0364224,105680.0,105660.0,0.67995983]
[1734361684837,0.0364224,105680.0,105660.0,0.65529673]
[1734361685945,0.0364224,105680.0,105660.0,0.67995993]
[1734361686432,0.0364224,105680.0,105660.0,0.67544414]
[1734361686952,0.0364224,105680.0,105660.0,0.67995993]
[1734361687830,0.0364224,105680.0,105660.0,0.6537843]
[1734361688043,0.0364224,105680.0,105660.0,0.67403263]
[1734361688337,0.0364224,105680.0,105660.0,0.67993383]
[1734361688554,0.0364224,105680.0,105670.0,0.0246632]
[1734361688766,8.62e-05,105680.0,105670.0,0.0305644]
[1734361688989,0.0364224,105680.0,105670.0,0.0305644]
[1734361689427,0.0364724,105680.0,105670.0,0.0305644]
[1734361689669,0.0364724,105680.0,105670.0,0.05669128]
[1734361689951,0.0364724,105680.0,105670.0,0.6537344]
[1734361690188,0.0364724,105680.0,105670.0,0.67986139]
[1734361690409,0.0364724,105680.0,105670.0,0.6537344]
[1734361690636,0.04927653,105690.0,105680.0,0.15]
[1734361690884,0.04927653,105690.0,105680.0,0.1559012]
[1734361691099,0.04927653,105690.0,105680.0,0.15590016]
[1734361691962,0.04944412,105690.0,105680.0,0.15590016]
[1734361693822,0.08963983,105690.0,105680.0,0.15590016]
[1734361694671,0.08963983,105690.0,105680.0,0.1559006]
[1734361695203,0.18393053,105690.0,105680.0,0.1759772]
[1734361695988,0.14373482,105690.0,105680.0,0.1759772]
[1734361696223,0.18393053,105690.0,105680.0,0.6491072]
[1734361697185,0.08963983,105690.0,105680.0,0.6491072]
[1734361697955,0.08963983,105690.0,105680.0,0.2667712]
[1734361698214,0.08963983,105690.0,105680.0,0.4167712]
[1734361698488,0.00034412,105690.0,105680.0,0.41982008]
[1734361698698,0.00034412,105690.0,105680.0,0.51411078]
[1734361698914,0.00034412,105690.0,105680.0,0.94549778]
[1734361699128,0.00034412,105690.0,105680.0,0.96696707]
[1734361699347,0.00034412,105690.0,105680.0,1.02960963]
[1734361699568,0.00034412,105690.0,105680.0,1.07104513]
[1734361699831,0.00034412,105690.0,105680.0,1.09717339]
[1734361700043,0.00034412,105690.0,105680.0,1.07235789]
[1734361700464,8.63e-05,105710.0,105700.0,0.00980429]
[1734361700682,0.02101459,105750.0,105740.0,0.00980429]
[1734361700914,0.02101459,105750.0,105740.0,0.27709499]
[1734361701154,0.02101459,105750.0,105740.0,2.55632199]
[1734361701385,0.02101459,105750.0,105740.0,2.66705699]
[1734361701596,0.02101459,105750.0,105740.0,2.6572527]
[1734361701814,0.02101459,105750.0,105740.0,2.6066317]
[1734361702016,0.02157325,105750.0,105740.0,2.5031807]
[1734361702228,0.02157325,105750.0,105740.0,2.3625437]
[1734361702450,0.02157325,105750.0,105740.0,2.2979637]
[1734361702665,0.02157325,105750.0,105740.0,2.2770437]
[1734361702876,0.02157325,105750.0,105740.0,2.3000437]
[1734361703300,0.02157325,105750.0,105740.0,2.30984799]
[1734361703503,0.02157325,105750.0,105740.0,2.3288877]
[1734361704000,0.02165945,105750.0,105740.0,2.3288877]
[1734361704426,0.02165945,105750.0,105740.0,2.3000437]
[1734361704632,0.02165945,105750.0,105740.0,2.32545898]
[1734361705073,0.02165945,105750.0,105740.0,2.34540593]
[1734361705507,0.02165945,105750.0,105740.0,2.35521022]
[1734361707301,0.02165945,105750.0,105740.0,2.32979494]
[1734361707769,0.02165945,105750.0,105740.0,1.3196041]
[1734361708409,0.02165945,105750.0,105740.0,1.32310986]
[1734361708625,0.02165945,105750.0,105740.0,1.00027315]
[1734361708841,0.02165945,105750.0,105740.0,3.74387815]
[1734361709066,0.02165945,105750.0,105740.0,2.56426814]
[1734361709280,0.02165945,105750.0,105740.0,2.54658115]
[1734361709497,0.02165945,105750.0,105740.0,1.74338642]
[1734361709705,0.02165945,105750.0,105740.0,1.64913042]
[1734361709920,0.02165945,105750.0,105740.0,1.62589069]
[1734361710134,0.02165945,105750.0,105740.0,1.64911758]
[1734361711945,0.02165945,105750.0,105740.0,1.57904329]
[1734361712162,0.02165945,105750.0,105740.0,1.36654029]
[1734361712801,0.02165945,105750.0,105740.0,1.20735329]
[1734361713671,0.02165945,105750.0,105740.0,1.14289454]
[1734361713906,0.02165945,105750.0,105740.0,0.71682695]
[1734361714551,0.19903219,105750.0,105740.0,0.71682695]
[1734361715196,0.19903219,105750.0,105740.0,0.69688]
[1734361715430,0.24633219,105750.0,105740.0,0.64688]
[1734361715665,0.24515015,105750.0,105740.0,0.51878]
[1734361715878,0.24515015,105750.0,105720.0,0.01476003]
[1734361716088,0.14547301,105740.0,105720.0,0.01476003]
[1734361716319,0.1442907,105730.0,105680.0,0.02477553]
[1734361716541,0.04019571,105690.0,105680.0,0.02477553]
[1734361716776,0.13448641,105690.0,105680.0,0.02211803]
[1734361717021,0.04019571,105690.0,105680.0,0.02509053]
[1734361717228,0.0942907,105690.0,105680.0,0.0001724]
[1734361717873,0.1707907,105690.0,105680.0,0.0001724]
[1734361718089,0.1707907,105690.0,105680.0,0.00033999]
[1734361718514,0.17197365,105690.0,105680.0,0.00033999]
[1734361718726,0.17197365,105690.0,105680.0,0.01019405]
[1734361718946,0.11669571,105690.0,105680.0,0.01019405]
[1734361719159,0.04019571,105690.0,105680.0,0.01019405]
[1734361719826,0.04019571,105700.0,105680.0,0.01019405]
[1734361720038,0.05,105700.0,105640.0,0.11863187]
[1734361720250,0.05016747,105700.0,105650.0,1.2662207]
[1734361720483,0.05,105680.0,105650.0,0.25414372]
[1734361720701,0.05,105680.0,105650.0,0.15985302]
[1734361720912,0.14547338,105690.0,105650.0,0.00985302]
[1734361721121,0.05,105690.0,105660.0,0.0942907]
[1734361721377,0.05,105680.0,105650.0,0.01476955]
[1734361721627,0.05,105670.0,105650.0,0.01476955]
[1734361722225,0.11440366,105680.0,105640.0,0.02508081]
[1734361722461,0.02028043,105700.0,105660.0,0.0942907]
[1734361723135,0.02011296,105690.0,105660.0,0.0942907]
[1734361723592,0.02011296,105690.0,105640.0,0.23]
[1734361723593,0.02011296,105680.0,105640.0,0.23]
[1734361723800,0.02011296,105680.0,105650.0,1.0347837]
[1734361724009,0.02011296,105690.0,105650.0,0.2442907]
[1734361724434,0.02028043,105700.0,105660.0,0.18116684]
[1734361724645,0.02028043,105700.0,105670.0,0.2442907]
[1734361724871,0.02028043,105700.0,105670.0,0.2464306]
[1734361725083,0.02011296,105690.0,105670.0,0.1521399]
[1734361725585,0.02011296,105690.0,105670.0,0.15]
[1734361725797,0.02011296,105690.0,105650.0,0.0021399]
[1734361726014,0.02011296,105690.0,105650.0,0.2464306]
[1734361726239,0.02011296,105690.0,105660.0,0.2442907]
[1734361726459,0.02011296,105690.0,105660.0,0.2464306]
[1734361726885,0.02011296,105680.0,105660.0,0.1521399]
[1734361727103,0.02011296,105680.0,105670.0,0.0001722]
[1734361728194,0.11440366,105690.0,105670.0,0.0001722]
[1734361728407,0.02011296,105690.0,105670.0,0.0001722]
[1734361728825,0.02028043,105700.0,105670.0,0.2466028]
[1734361729245,0.02028043,105700.0,105680.0,0.03116684]
[1734361729458,0.02028043,105700.0,105680.0,0.18116684]
[1734361729668,0.11457113,105700.0,105680.0,0.18116684]
[1734361729882,0.02028043,105700.0,105680.0,0.18116684]
[1734361730381,0.02028043,105700.0,105680.0,0.03116684]
[1734361730927,0.02028043,105700.0,105680.0,0.03706698]
[1734361732473,0.02028043,105700.0,105680.0,0.04637022]
[1734361733115,0.02028043,105700.0,105680.0,0.01520338]
[1734361733326,0.02011296,105690.0,105680.0,0.01520338]
[1734361733998,0.05,105730.0,105680.0,0.00930324]
[1734361734241,0.0942907,105720.0,105690.0,0.15]
[1734361734521,0.00071146,105710.0,105690.0,0.15]
[1734361734781,0.0942907,105700.0,105690.0,0.15]
[1734361735267,0.0942907,105700.0,105680.0,0.00016747]
[1734361735701,0.0942907,105690.0,105680.0,0.00016747]
[1734361735919,0.0942907,105690.0,105670.0,0.0001722]
[1734361736137,0.0942907,105690.0,105660.0,0.0147683]
[1734361736138,0.09500216,105680.0,105660.0,0.0147683]
[1734361736370,0.0942907,105670.0,105640.0,0.01476463]
[1734361736599,0.0001674,105690.0,105640.0,0.01476463]
[1734361736600,0.0942907,105650.0,105640.0,0.01476463]
[1734361736811,0.0942907,105650.0,105630.0,0.04]
[1734361737040,0.0942907,105640.0,105630.0,0.04]
[1734361737256,0.0942907,105640.0,105590.0,0.0001724]
[1734361737257,0.1408907,105640.0,105590.0,0.0001724]
[1734361737471,0.0942907,105630.0,105610.0,0.0147748]
[1734361737700,0.0942907,105620.0,105610.0,0.0147748]
[1734361737923,0.0942907,105620.0,105610.0,0.00055921]
[1734361738142,0.0942907,105620.0,105590.0,0.01495114]
[1734361738143,0.0781,105610.0,105590.0,0.01495114]
[1734361738404,0.0942907,105600.0,105590.0,0.01495114]
[1734361738623,0.0942907,105600.0,105590.0,0.0001724]
[1734361739075,0.09500216,105600.0,105590.0,0.0001724]
[1734361739293,0.09500216,105600.0,105590.0,0.02656701]
[1734361740396,0.09500216,105600.0,105590.0,0.0001724]
[1734361740624,0.09500216,105600.0,105570.0,0.0001726]
[1734361740859,0.11520216,105590.0,105570.0,0.0001726]
[1734361741100,0.1402907,105580.0,105570.0,0.0001726]
[1734361742411,0.13726325,105580.0,105570.0,0.00034022]
[1734361742880,0.13802471,105580.0,105570.0,0.00034022]
[1734361745691,0.13731325,105580.0,105570.0,0.00034022]
[1734361745918,0.13802471,105580.0,105570.0,0.15034022]
[1734361746129,0.0943407,105580.0,105570.0,0.15034022]
[1734361746397,5e-05,105580.0,105570.0,0.15034022]
[1734361746844,5e-05,105580.0,105570.0,0.00034022]
[1734361747060,0.0943407,105580.0,105570.0,0.00034022]
[1734361747700,0.09505216,105580.0,105570.0,0.00034022]
[1734361747912,0.09505216,105580.0,105560.0,0.0001726]
[1734361748121,0.0942907,105570.0,105560.0,0.00034036]
[1734361749454,0.1433907,105570.0,105540.0,0.0001722]
[1734361749688,0.09500216,105560.0,105540.0,0.0001722]
[1734361750140,0.0942907,105560.0,105540.0,0.00111979]
[1734361750349,0.00016726,105570.0,105540.0,0.05111979]
[1734361750584,0.00016726,105570.0,105550.0,0.05]
[1734361750795,0.00016726,105570.0,105560.0,0.15]
[1734361751011,0.09445796,105570.0,105550.0,0.2294]
[1734361751226,0.0942907,105560.0,105540.0,0.0001722]
[1734361751479,0.00071146,105550.0,105540.0,0.0001722]
[1734361751697,0.09500216,105550.0,105540.0,0.0001722]
[1734361751906,0.0942907,105550.0,105540.0,0.0001722]
[1734361754290,0.0943407,105550.0,105540.0,0.0001722]
[1734361754532,0.09505216,105550.0,105540.0,0.0001722]
[1734361755175,0.11805216,105550.0,105540.0,0.0001722]
[1734361755401,0.20035216,105550.0,105540.0,0.0001722]
[1734361755625,0.20035216,105550.0,105520.0,0.0001728]
[1734361755856,0.0942907,105530.0,105520.0,0.0001728]
[1734361759371,0.1172907,105530.0,105520.0,0.0001728]
[1734361759582,0.1644907,105530.0,105520.0,0.0001728]
[1734361760005,0.1414907,105530.0,105520.0,0.0001728]
[1734361760228,0.0942907,105530.0,105520.0,0.0001728]
[1734361760450,0.0943407,105530.0,105520.0,0.0001728]
[1734361760923,0.0943907,105530.0,105520.0,0.0001728]
[1734361761156,0.0944407,105530.0,105520.0,0.0001728]
[1734361761368,0.0944907,105530.0,105520.0,0.0001728]
[1734361761809,0.0945407,105530.0,105520.0,0.0001728]
[1734361762263,0.0945407,105530.0,105520.0,0.00608307]
[1734361762482,0.0945407,105530.0,105520.0,0.0001728]
[1734361762694,0.1175407,105530.0,105520.0,0.00608307]
[1734361762906,0.1175407,105530.0,105520.0,0.01285131]
[1734361763121,0.1626407,105530.0,105520.0,0.01285131]
[1734361763546,0.1627272,105530.0,105520.0,0.01285131]
[1734361763764,0.17907107,105530.0,105520.0,0.01285131]
[1734361763974,0.1627272,105530.0,105520.0,0.00694104]
[1734361764399,0.1627272,105530.0,105500.0,0.0002326]
[1734361764646,0.1627272,105530.0,105500.0,0.01558558]
[1734361764647,0.1172907,105510.0,105500.0,0.01558558]
[1734361765085,0.023,105500.0,105490.0,0.0001726]
[1734361765298,0.11800216,105500.0,105490.0,0.0001726]
[1734361765510,0.11800216,105500.0,105490.0,0.00608551]
[1734361765725,0.11800216,105500.0,105490.0,0.02088111]
[1734361765944,0.12985814,105500.0,105490.0,0.02088111]
[1734361766604,0.11800216,105500.0,105490.0,0.02088111]
[1734361767481,0.11805216,105500.0,105490.0,0.02088111]
[1734361767692,0.11810216,105500.0,105490.0,0.02088111]
[1734361767903,0.11815216,105500.0,105490.0,0.02088111]
[1734361768115,0.11820216,105500.0,105490.0,0.02088111]
[1734361768322,0.11825216,105500.0,105490.0,0.02088111]
[1734361768770,0.12942167,105500.0,105490.0,0.02088111]
[1734361769185,0.1175407,105500.0,105490.0,0.02088111]
[1734361769399,0.1,105490.0,105440.0,0.15]
[1734361769613,0.09500216,105480.0,105440.0,0.15]
[1734361770057,0.09500216,105480.0,105410.0,0.07181624]
[1734361770058,0.00118539,105470.0,105410.0,0.07181624]
[1734361770273,0.00025,105500.0,105420.0,1.45484719]
[1734361770488,0.0942907,105490.0,105430.0,1.61798782]
[1734361770697,0.0942907,105490.0,105440.0,0.81289541]
[1734361770918,0.0942907,105490.0,105450.0,0.0942907]
[1734361771158,0.0942907,105490.0,105460.0,0.00071031]
[1734361771375,0.00055725,105490.0,105460.0,0.00071031]
[1734361771622,0.00055725,105490.0,105460.0,0.09500101]
[1734361772598,0.00055725,105490.0,105470.0,0.2276]
[1734361773629,0.00060725,105490.0,105480.0,0.00071012]
[1734361773916,0.00060725,105490.0,105480.0,0.24500082]
[1734361774129,0.00060725,105490.0,105480.0,0.2442907]
[1734361774481,0.00025,105500.0,105480.0,2.1184137]
[1734361774723,0.0003365,105530.0,105500.0,0.15]
[1734361775192,0.0003365,105530.0,105510.0,0.00070919]
[1734361775441,0.0003365,105530.0,105510.0,0.09499989]
[1734361775722,0.0003365,105530.0,105520.0,0.2321]
[1734361776016,0.0003365,105530.0,105520.0,0.3263907]
[1734361776513,0.0003365,105530.0,105520.0,0.9319357]
[1734361776722,0.0003365,105530.0,105520.0,0.9549357]
[1734361776936,5e-05,105550.0,105520.0,0.9549357]
[1734361777156,0.00021723,105550.0,105530.0,0.24499924]
[1734361777363,0.00021723,105550.0,105530.0,0.27115009]
[1734361777622,0.00021723,105550.0,105530.0,0.27044155]
[1734361777852,0.00021723,105550.0,105540.0,0.00070854]
[1734361778491,5e-05,105570.0,105540.0,0.56449194]
[1734361778702,5e-05,105570.0,105550.0,0.2442907]
[1734361778924,5e-05,105570.0,105560.0,0.00070782]
[1734361779153,8.64e-05,105580.0,105570.0,0.15]
[1734361779368,8.64e-05,105580.0,105570.0,0.28123389]
[1734361779585,8.64e-05,105580.0,105570.0,0.28052635]
[1734361780018,8.64e-05,105580.0,105570.0,0.35212635]
[1734361780252,5e-05,105600.0,105570.0,1.25650072]
[1734361780468,5e-05,105600.0,105590.0,0.15]
[1734361781330,5e-05,105600.0,105590.0,0.65284339]
[1734361781577,5e-05,105600.0,105590.0,1.11474662]
[1734361781837,5e-05,105600.0,105590.0,1.18830834]
[1734361781838,0.00060921,105600.0,105590.0,1.18830834]
[1734361782254,5e-05,105620.0,105590.0,0.87742842]
[1734361782463,0.00021765,105620.0,105610.0,0.51000301]
[1734361782675,0.00021765,105620.0,105610.0,3.32232371]
[1734361782676,0.00016765,105620.0,105610.0,3.32232371]
[1734361782917,5e-05,105620.0,105610.0,3.39631383]
[1734361783141,5e-05,105620.0,105610.0,3.01245293]
[1734361783350,5e-05,105620.0,105610.0,2.56963993]
[1734361783980,8.65e-05,105640.0,105620.0,0.023]
[1734361784204,8.65e-05,105640.0,105630.0,0.09499699]
[1734361784649,8.65e-05,105640.0,105630.0,0.24499699]
[1734361784864,8.65e-05,105640.0,105630.0,0.26226452]
[1734361785151,8.65e-05,105640.0,105630.0,0.28526452]
[1734361785630,8.65e-05,105640.0,105630.0,1.16443452]
[1734361787090,8.64e-05,105690.0,105650.0,0.15]
[1734361787314,0.09454472,105690.0,105650.0,0.2442907]
[1734361787523,0.09547356,105680.0,105640.0,0.1285]
[1734361787728,0.0942907,105680.0,105640.0,0.0818]
[1734361787963,0.00118298,105670.0,105630.0,0.00070632]
[1734361788184,0.09547368,105670.0,105630.0,0.09499702]
[1734361788389,0.00118298,105670.0,105640.0,0.0942407]
[1734361788604,0.00025402,105690.0,105650.0,0.00070581]
[1734361788605,0.00143681,105690.0,105650.0,0.00070581]
[1734361788814,0.00025402,105690.0,105650.0,0.09499651]
[1734361789283,0.00143677,105690.0,105650.0,0.09499651]
[1734361789532,0.00143677,105690.0,105660.0,0.15]
[1734361789747,0.00143677,105690.0,105660.0,0.15070572]
[1734361790197,0.09572747,105690.0,105660.0,0.15070572]
[1734361790415,0.09572747,105690.0,105660.0,0.00070572]
[1734361790634,0.09572747,105690.0,105630.0,0.00070611]
[1734361790635,0.0942907,105680.0,105630.0,0.00070611]
[1734361790855,0.14547378,105670.0,105620.0,0.0814]
[1734361791276,0.09547378,105670.0,105620.0,0.1756907]
[1734361791484,0.09547378,105670.0,105630.0,0.00070681]
[1734361791921,0.09547378,105670.0,105620.0,0.21431732]
[1734361792132,0.09547378,105670.0,105630.0,0.00070652]
[1734361792971,0.09547378,105670.0,105620.0,0.21431732]
[1734361793418,0.09547378,105670.0,105630.0,0.15070652]
[1734361793626,0.09552378,105670.0,105630.0,0.15]
[1734361794695,0.09552386,105670.0,105630.0,0.15070665]
[1734361795120,0.09552386,105670.0,105630.0,0.15]
[1734361795778,0.09552386,105670.0,105630.0,0.15070665]
[1734361796607,0.0943407,105670.0,105630.0,0.15070665]
[1734361797094,0.0943407,105670.0,105630.0,0.24499713]
[1734361797327,5e-05,105670.0,105640.0,0.0942907]
[1734361797537,5e-05,105670.0,105650.0,0.00070607]
[1734361798176,0.0943407,105670.0,105630.0,0.15]
[1734361798389,0.09547375,105660.0,105630.0,0.15]
[1734361798605,0.09547375,105660.0,105630.0,0.148096]
[1734361799017,0.09547375,105660.0,105630.0,0.1482688]
[1734361799447,0.09547375,105660.0,105630.0,0.14897534]
[1734361800487,0.0001364,105670.0,105640.0,0.3399927]
[1734361800704,0.0001364,105670.0,105650.0,0.15094628]
[1734361800924,0.0001364,105670.0,105660.0,0.3258907]
[1734361801188,0.0001364,105670.0,105660.0,0.3488907]
[1734361801606,0.0001364,105670.0,105660.0,0.15]
[1734361802027,0.0001364,105670.0,105640.0,0.15094629]
[1734361802662,0.0001364,105670.0,105640.0,0.24523699]
[1734361802870,0.0001364,105670.0,105650.0,0.0942907]
[1734361803086,0.0001364,105670.0,105660.0,0.15094619]
[1734361803348,0.0001364,105670.0,105660.0,0.26823682]
[1734361803557,0.0001364,105670.0,105660.0,0.2672907]
[1734361804191,0.0001364,105670.0,105650.0,0.023]
[1734361804406,0.0001364,105670.0,105660.0,0.15]
[1734361805552,0.0001364,105670.0,105640.0,0.15]
[1734361805770,0.0001364,105670.0,105660.0,0.0942907]
[1734361805989,0.0001364,105670.0,105660.0,0.24523683]
[1734361806204,0.00030402,105690.0,105660.0,0.2442907]
[1734361806418,0.00030402,105690.0,105670.0,0.00094613]
[1734361806627,0.00030402,105690.0,105670.0,0.24523683]
[1734361806838,0.00030402,105690.0,105680.0,0.00094607]
[1734361807274,0.08752257,105720.0,105680.0,0.00094607]
[1734361807482,0.18181327,105720.0,105680.0,0.09540439]
[1734361807706,0.18181327,105720.0,105680.0,0.24540439]
[1734361807707,0.10621327,105720.0,105680.0,0.24540439]
[1734361807918,0.10621327,105720.0,105680.0,0.24445832]
[1734361808136,0.01192257,105720.0,105690.0,0.32623664]
[1734361808353,0.01192257,105720.0,105690.0,0.3252907]
[1734361808559,0.01192257,105720.0,105700.0,0.00094589]
[1734361809007,0.01192257,105720.0,105710.0,0.15]
[1734361810062,0.01192257,105720.0,105700.0,0.00094589]
[1734361810287,0.01192257,105720.0,105700.0,0.2442907]
[1734361810940,0.01200897,105720.0,105710.0,0.00094582]
[1734361811358,0.01200897,105720.0,105700.0,0.2442907]
[1734361811995,0.18449967,105720.0,105680.0,0.00016762]
[1734361812240,0.18449967,105720.0,105690.0,0.15]
[1734361813315,0.10629967,105720.0,105680.0,0.09445832]
[1734361813536,0.10629967,105720.0,105690.0,0.15]
[1734361813747,0.10629967,105720.0,105690.0,0.17612816]